bitfinex/quotes_BTCUSD_20250213
["timestamp","ask_amount","ask_price","bid_price","bid_amount"]
[1739438048076,0.86374147,96238.0,96237.0,0.00022365]
[1739438048552,0.84974147,96238.0,96237.0,0.00022365]
[1739438048963,0.86374147,96238.0,96237.0,0.00022365]
[1739438049156,0.85874147,96238.0,96237.0,0.00022365]
[1739438049362,0.86574147,96238.0,96237.0,0.00122365]
[1739438051251,0.73584147,96238.0,96237.0,0.00122365]
[1739438052617,0.72884147,96238.0,96237.0,0.00022365]
[1739438052981,0.72884147,96238.0,96237.0,0.00122365]
[1739438053130,0.73584147,96238.0,96237.0,0.00122365]
[1739438053333,0.72184147,96238.0,96237.0,0.00022365]
[1739438053493,0.74384147,96238.0,96237.0,0.00122365]
[1739438053900,0.73684147,96238.0,96237.0,0.00022365]
[1739438054299,0.72184147,96238.0,96237.0,0.00022365]
[1739438054547,0.82434512,96238.0,96237.0,0.00022365]
[1739438054797,0.84634512,96238.0,96237.0,0.00122365]
[1739438055009,0.74384147,96238.0,96237.0,0.00122365]
[1739438055961,0.72984147,96238.0,96237.0,0.00022365]
[1739438056365,0.72184147,96238.0,96237.0,0.00122365]
[1739438056570,0.73684147,96238.0,96237.0,0.00022365]
[1739438056976,0.74384147,96238.0,96237.0,0.00122365]
[1739438057170,0.72184147,96238.0,96237.0,0.00022365]
[1739438057578,0.73684147,96238.0,96237.0,0.00022365]
[1739438058058,0.78724301,96238.0,96237.0,0.00022365]
[1739438058257,0.80424301,96238.0,96237.0,0.00122365]
[1739438058750,0.78924301,96238.0,96237.0,0.00122365]
[1739438059327,0.77524301,96238.0,96237.0,0.00022365]
[1739438059938,0.75127452,96238.0,96237.0,0.00122365]
[1739438060144,0.76627452,96238.0,96237.0,0.00022365]
[1739438060477,0.77327452,96238.0,96237.0,0.00122365]
[1739438060653,0.45127452,96238.0,96237.0,0.00022365]
[1739438060849,0.46627452,96238.0,96237.0,0.00022365]
[1739438061052,0.47327452,96238.0,96237.0,0.00122365]
[1739438061256,0.46627452,96238.0,96237.0,0.00022365]
[1739438061432,0.76627452,96238.0,96237.0,0.00022365]
[1739438061634,0.75127452,96238.0,96237.0,0.00022365]
[1739438062043,0.76627452,96238.0,96237.0,0.00022365]
[1739438063158,0.75827452,96238.0,96237.0,0.00122365]
[1739438063365,0.75127452,96238.0,96237.0,0.00122365]
[1739438063566,0.76627452,96238.0,96237.0,0.00122365]
[1739438063766,0.77327452,96238.0,96237.0,0.00222365]
[1739438063997,0.75127452,96238.0,96237.0,0.00122365]
[1739438064216,0.76627452,96238.0,96237.0,0.00122365]
[1739438064623,0.75927452,96238.0,96237.0,0.00022365]
[1739438064823,0.74427452,96238.0,96237.0,0.00022365]
[1739438065063,0.75927452,96238.0,96237.0,0.00022365]
[1739438066400,0.75127452,96238.0,96237.0,0.00122365]
[1739438066598,0.75627452,96238.0,96237.0,0.00122365]
[1739438067716,0.73427452,96238.0,96237.0,0.00022365]
[1739438067935,0.74927452,96238.0,96237.0,0.00022365]
[1739438068063,0.75627452,96238.0,96237.0,0.00122365]
[1739438069365,0.74127452,96238.0,96237.0,0.00122365]
[1739438069568,0.75627452,96238.0,96237.0,0.00122365]
[1739438070251,0.74927452,96238.0,96237.0,0.00022365]
[1739438070427,0.75627452,96238.0,96237.0,0.00122365]
[1739438071218,0.76327452,96238.0,96237.0,0.00222365]
[1739438071498,0.74127452,96238.0,96237.0,0.00122365]
[1739438071877,0.74827452,96238.0,96237.0,0.00222365]
[1739438072839,0.76327452,96238.0,96237.0,0.00222365]
[1739438073563,0.72984147,96238.0,96237.0,0.00022365]
[1739438074508,0.71484147,96238.0,96237.0,0.00022365]
[1739438074923,0.72184147,96238.0,96237.0,0.00122365]
[1739438075687,0.71484147,96238.0,96237.0,0.00022365]
[1739438075980,0.72984147,96238.0,96237.0,0.00022365]
[1739438076396,0.71484147,96238.0,96237.0,0.00022365]
[1739438076909,0.72984147,96238.0,96237.0,0.00022365]
[1739438077203,0.73684147,96238.0,96237.0,0.00122365]
[1739438077906,0.71484147,96238.0,96237.0,0.00022365]
[1739438078336,0.72184147,96238.0,96237.0,0.00122365]
[1739438078632,0.71484147,96238.0,96237.0,0.00022365]
[1739438078842,0.72184147,96238.0,96237.0,0.00122365]
[1739438079046,0.74133662,96238.0,96237.0,0.00122365]
[1739438079237,0.75633662,96238.0,96237.0,0.00122365]
[1739438080049,0.74933662,96238.0,96237.0,0.00022365]
[1739438080445,0.74133662,96238.0,96237.0,0.00122365]
[1739438080670,0.74133662,96238.0,96237.0,0.00022365]
[1739438080980,0.76233662,96238.0,96237.0,0.00122365]
[1739438083455,0.76217943,96238.0,96237.0,0.00122365]
[1739438085020,0.76228603,96238.0,96237.0,0.00122365]
[1739438092051,0.74279088,96238.0,96237.0,0.00122365]
[1739438093644,0.72879088,96238.0,96237.0,0.00122365]
[1739438093847,0.71479088,96238.0,96237.0,0.00022365]
[1739438094027,0.72179088,96238.0,96237.0,0.00122365]
[1739438094782,0.72979088,96238.0,96237.0,0.00022365]
[1739438095165,0.73679088,96238.0,96237.0,0.00122365]
[1739438095364,0.72179088,96238.0,96237.0,0.00122365]
[1739438095521,0.71479088,96238.0,96237.0,0.00022365]
[1739438095936,0.72979088,96238.0,96237.0,0.00022365]
[1739438096255,0.71479088,96238.0,96237.0,0.00022365]
[1739438096468,0.41479088,96238.0,96237.0,0.00022365]
[1739438096644,0.72979088,96238.0,96237.0,0.00122365]
[1739438096843,0.73679088,96238.0,96237.0,0.00122365]
[1739438097029,0.73679088,96238.0,96237.0,0.00022365]
[1739438097225,0.74379088,96238.0,96237.0,0.00122365]
[1739438097635,0.73679088,96238.0,96237.0,0.00022365]
[1739438097829,0.74379088,96238.0,96237.0,0.00122365]
[1739438098060,0.73679088,96238.0,96237.0,0.00022365]
[1739438098516,0.72179088,96238.0,96237.0,0.00022365]
[1739438098715,0.74379088,96238.0,96237.0,0.00122365]
[1739438099363,0.72879088,96238.0,96237.0,0.00122365]
[1739438099600,0.74379088,96238.0,96237.0,0.00122365]
[1739438100279,0.72979088,96238.0,96237.0,0.00022365]
[1739438100691,0.73679088,96238.0,96237.0,0.00122365]
[1739438100894,0.72979088,96238.0,96237.0,0.00022365]
[1739438101099,0.71479088,96238.0,96237.0,0.00022365]
[1739438101306,0.72979088,96238.0,96237.0,0.00022365]
[1739438101715,0.73679088,96238.0,96237.0,0.00122365]
[1739438102900,0.28679088,96238.0,96237.0,0.00122365]
[1739438103240,0.58694807,96238.0,96237.0,0.12662365]
[1739438104029,0.56494807,96238.0,96237.0,0.12562365]
[1739438104380,0.58494807,96238.0,96237.0,0.12662365]
[1739438104580,0.57894807,96238.0,96237.0,0.12562365]
[1739438104852,0.56494807,96238.0,96237.0,0.12562365]
[1739438105154,0.57894807,96238.0,96237.0,0.12562365]
[1739438105351,0.57894807,96238.0,96237.0,0.07662365]
[1739438105561,0.58394807,96238.0,96237.0,0.00122365]
[1739438108755,0.83994807,96238.0,96237.0,0.00122365]
[1739438111018,0.85942912,96238.0,96237.0,0.00122365]
[1739438111521,0.84542912,96238.0,96237.0,0.00122365]
[1739438111835,0.84742912,96238.0,96237.0,0.00022365]
[1739438112278,0.86342912,96238.0,96237.0,0.00122365]
[1739438112613,1.09272912,96238.0,96237.0,0.00122365]
[1739438112816,1.06842912,96238.0,96237.0,0.00122365]
[1739438113051,1.01342912,96238.0,96237.0,0.00122365]
[1739438114047,1.00642912,96238.0,96237.0,0.00122365]
[1739438114220,1.02042912,96238.0,96237.0,0.00122365]
[1739438114431,1.01442912,96238.0,96237.0,0.00022365]
[1739438114622,1.02142912,96238.0,96237.0,0.00022365]
[1739438114829,1.00042912,96238.0,96237.0,0.00022365]
[1739438115386,1.00742912,96238.0,96237.0,0.00022365]
[1739438115584,1.01242912,96238.0,96237.0,0.00022365]
[1739438115818,1.01942912,96238.0,96237.0,0.00022365]
[1739438117049,1.00742912,96238.0,96237.0,0.00022365]
[1739438117252,0.99994807,96238.0,96237.0,0.00022365]
[1739438117428,1.00694807,96238.0,96237.0,0.00022365]
[1739438123173,0.99494807,96238.0,96237.0,0.00022365]
[1739438123625,0.99294807,96238.0,96237.0,0.00022365]
[1739438124039,0.99994807,96238.0,96237.0,0.00022365]
[1739438124622,0.98794807,96238.0,96237.0,0.00022365]
[1739438124828,0.98094807,96238.0,96237.0,0.00022365]
[1739438125030,1.09024807,96238.0,96237.0,0.00022365]
[1739438125729,1.19275172,96238.0,96237.0,0.00022365]
[1739438125941,1.18575172,96238.0,96237.0,0.00022365]
[1739438126204,1.17175172,96238.0,96237.0,0.00022365]
[1739438126692,1.18375172,96238.0,96237.0,0.00022365]
[1739438126999,1.06924807,96238.0,96237.0,0.00022365]
[1739438127146,1.07624807,96238.0,96237.0,0.00022365]
[1739438127335,1.08324807,96238.0,96237.0,0.00022365]
[1739438127543,1.00494807,96238.0,96237.0,0.00022365]
[1739438127743,1.01194807,96238.0,96237.0,0.00022365]
[1739438147816,1.00194807,96238.0,96237.0,0.00022365]
[1739438148016,1.01194807,96238.0,96237.0,0.00022365]
[1739438149341,0.84194807,96238.0,96237.0,0.07792365]
[1739438157120,0.83919442,96238.0,96237.0,0.07792365]
[1739438157848,0.82519442,96238.0,96237.0,0.07792365]
[1739438158063,0.83219442,96238.0,96237.0,0.00022365]
[1739438158505,0.82519442,96238.0,96237.0,0.00022365]
[1739438158702,0.81819442,96238.0,96237.0,0.00022365]
[1739438158838,0.83219442,96238.0,96237.0,0.00022365]
[1739438159246,0.81819442,96238.0,96237.0,0.00022365]
[1739438159763,0.83219442,96238.0,96237.0,0.00022365]
[1739438159988,0.83919442,96238.0,96237.0,0.00022365]
[1739438161220,0.83219442,96238.0,96237.0,0.00022365]
[1739438161428,0.81819442,96238.0,96237.0,0.00022365]
[1739438161596,0.82519442,96238.0,96237.0,0.00022365]
[1739438161795,0.83919442,96238.0,96237.0,0.00022365]
[1739438163961,0.98919442,96238.0,96237.0,0.00022365]
[1739438164474,0.99919442,96238.0,96237.0,0.00022365]
[1739438166222,1.01865857,96238.0,96237.0,0.00022365]
[1739438171449,1.00865857,96238.0,96237.0,0.00022365]
[1739438172290,0.98919442,96238.0,96237.0,0.00022365]
[1739438177162,0.99919442,96238.0,96237.0,0.00022365]
[1739438177912,0.99913667,96238.0,96237.0,0.00022365]
[1739438181386,0.99913667,96238.0,96237.0,6.5e-07]
[1739438183516,0.315865,96237.0,96236.0,3e-07]
[1739438183713,0.51836865,96237.0,96236.0,3e-07]
[1739438183939,0.52366107,96237.0,96236.0,3e-07]
[1739438184743,0.54466107,96237.0,96236.0,3e-07]
[1739438184983,0.53766107,96237.0,96236.0,3e-07]
[1739438185147,0.52366107,96237.0,96236.0,3e-07]
[1739438185369,0.54566107,96237.0,96236.0,3e-07]
[1739438185950,0.53066107,96237.0,96236.0,3e-07]
[1739438186580,0.52366107,96237.0,96236.0,3e-07]
[1739438186986,0.55366107,96237.0,96236.0,3e-07]
[1739438187165,0.56066107,96237.0,96236.0,3e-07]
[1739438187579,0.56766107,96237.0,96236.0,3e-07]
[1739438187994,0.89566107,96237.0,96236.0,3e-07]
[1739438189294,1.01939667,96237.0,96236.0,3e-07]
[1739438190711,0.91689302,96237.0,96236.0,3e-07]
[1739438192592,0.88389302,96237.0,96236.0,3e-07]
[1739438193668,0.52810535,96237.0,96236.0,3e-07]
[1739438193878,0.82810535,96237.0,96236.0,0.0796003]
[1739438194084,0.67810535,96237.0,96236.0,0.0796003]
[1739438194668,0.65710535,96237.0,96236.0,0.0796003]
[1739438195225,0.67810535,96237.0,96236.0,0.0796003]
[1739438195454,0.67110535,96237.0,96236.0,0.0796003]
[1739438195657,0.67810535,96237.0,96236.0,0.0796003]
[1739438196817,0.66410535,96237.0,96236.0,0.0796003]
[1739438197216,0.58466107,96237.0,96236.0,0.0796003]
[1739438199495,0.58476757,96237.0,96236.0,0.0796003]
[1739438199694,0.42890257,96237.0,96236.0,0.1260003]
[1739438200574,0.58476757,96237.0,96236.0,0.1260003]
[1739438200780,0.57076757,96237.0,96236.0,0.1260003]
[1739438200933,0.56376757,96237.0,96236.0,0.1260003]
[1739438201134,0.57376757,96237.0,96236.0,0.1260003]
[1739438204188,0.41790257,96237.0,96236.0,0.1260003]
[1739438204393,0.57376757,96237.0,96236.0,0.1260003]
[1739438204590,0.41790257,96237.0,96236.0,0.1260003]
[1739438205817,0.57376757,96237.0,96236.0,0.1260003]
[1739438206396,0.41790257,96237.0,96236.0,0.1260003]
[1739438209916,0.41790257,96237.0,96236.0,0.2818663]
[1739438210310,0.41790257,96237.0,96236.0,0.1260003]
[1739438213403,0.57376757,96237.0,96236.0,0.1260003]
[1739438214983,0.41790257,96237.0,96236.0,0.1260003]
[1739438215385,0.57376757,96237.0,96236.0,0.1260003]
[1739438218590,0.41790257,96237.0,96236.0,0.1260003]
[1739438219252,0.41790257,96237.0,96236.0,0.2818663]
[1739438221894,0.41790257,96237.0,96236.0,0.1260003]
[1739438222481,0.57376757,96237.0,96236.0,0.1260003]
[1739438223358,0.57376757,96237.0,96236.0,3e-07]
[1739438225647,0.5842269,96237.0,96236.0,3e-07]
[1739438228840,0.57376757,96237.0,96236.0,3e-07]
[1739438229956,0.41790257,96237.0,96236.0,3e-07]
[1739438230337,0.41790257,96237.0,96236.0,0.2357663]
[1739438230534,0.41790257,96237.0,96236.0,0.2836663]
[1739438233368,0.41790257,96237.0,96236.0,0.1278003]
[1739438233740,0.41790257,96237.0,96236.0,0.2836663]
[1739438236191,0.41261015,96237.0,96236.0,0.2836663]
[1739438236518,0.4180325,96237.0,96236.0,0.2836663]
[1739438237201,0.31552885,96237.0,96236.0,0.2836663]
[1739438244674,0.31552885,96237.0,96236.0,0.61066602]
[1739438245271,0.31552885,96237.0,96236.0,0.76066602]
[1739438246128,0.30952885,96237.0,96236.0,0.78366602]
[1739438246303,0.30952885,96237.0,96236.0,0.76466602]
[1739438246511,0.31052885,96237.0,96236.0,0.78766602]
[1739438246734,0.30652885,96237.0,96236.0,0.78766602]
[1739438246942,0.30652885,96237.0,96236.0,0.78466602]
[1739438247144,0.30752885,96237.0,96236.0,0.78966602]
[1739438247352,0.30652885,96237.0,96236.0,0.78866602]
[1739438247985,0.30752885,96237.0,96236.0,0.78966602]
[1739438249900,0.30752885,96237.0,96236.0,0.76666602]
[1739438250304,0.30752885,96237.0,96236.0,1.33616602]
[1739438250685,0.3021065,96237.0,96236.0,1.33616602]
[1739438253653,0.1937616,96238.0,96237.0,0.453165]
[1739438253850,0.1937616,96238.0,96237.0,0.56606236]
[1739438254052,0.1937616,96238.0,96237.0,0.46355871]
[1739438255058,0.1947616,96238.0,96237.0,0.46455871]
[1739438255850,0.1957616,96238.0,96237.0,0.47055871]
[1739438256487,0.1958681,96238.0,96237.0,0.47055871]
[1739438257872,0.0021065,96238.0,96237.0,0.47055871]
[1739438258351,0.0021065,96238.0,96237.0,0.44755871]
[1739438259371,0.0021065,96238.0,96237.0,1.34405843]
[1739438261779,0.0021065,96238.0,96237.0,1.32105843]
[1739438262394,0.0021065,96238.0,96237.0,1.34405843]
[1739438263100,0.1959065,96238.0,96237.0,1.34405843]
[1739438271426,0.1959065,96238.0,96237.0,1.37632691]
[1739438273057,0.1959065,96238.0,96237.0,1.34405843]
[1739438273307,0.1959065,96238.0,96237.0,1.37633832]
[1739438274154,0.1959065,96238.0,96237.0,1.34405843]
[1739438274383,0.1959065,96238.0,96237.0,1.37633777]
[1739438277988,0.1959065,96238.0,96237.0,1.47633777]
[1739438279368,0.1959065,96238.0,96237.0,1.47656142]
[1739438282233,0.1959065,96238.0,96237.0,1.35226142]
[1739438282732,0.20150102,96238.0,96237.0,1.35226142]
[1739438284146,0.20150102,96238.0,96237.0,1.34186771]
[1739438286511,0.20150102,96238.0,96237.0,1.42046771]
[1739438294843,0.0296505,96238.0,96237.0,1.57157136]
[1739438300311,0.00063837,96249.0,96247.0,0.305849]
[1739438300517,0.00570635,96248.0,96247.0,0.33924271]
[1739438300714,0.0001065,96248.0,96247.0,0.33924271]
[1739438300922,0.0001065,96248.0,96247.0,1.21274243]
[1739438301531,0.0011065,96248.0,96247.0,1.21974243]
[1739438301725,0.0011065,96248.0,96247.0,1.22174243]
[1739438303083,0.0011065,96248.0,96247.0,1.30094243]
[1739438304041,0.0011065,96248.0,96247.0,1.32124595]
[1739438304649,0.0011065,96248.0,96247.0,1.36914595]
[1739438304868,0.0011065,96248.0,96247.0,1.40141935]
[1739438305070,0.0001065,96248.0,96247.0,1.39441935]
[1739438305449,0.0011065,96248.0,96247.0,1.40141935]
[1739438305670,0.0307065,96248.0,96247.0,1.40141935]
[1739438307205,0.0307065,96248.0,96247.0,1.39941935]
[1739438307415,0.0317065,96248.0,96247.0,1.40441935]
[1739438308748,0.0317065,96248.0,96247.0,1.27731935]
[1739438312774,0.0317065,96248.0,96247.0,1.25431935]
[1739438313936,0.0317065,96248.0,96247.0,1.27731935]
[1739438319486,0.0317065,96248.0,96247.0,1.25431935]
[1739438320396,5e-07,96248.0,96247.0,1.27731935]
[1739438320594,5e-07,96248.0,96247.0,1.35751935]
[1739438321459,2.7e-07,96250.0,96249.0,0.305845]
[1739438321663,4.419e-05,96250.0,96249.0,0.4061184]
[1739438322285,1.9e-07,96250.0,96249.0,0.4061184]
[1739438322740,1.9e-07,96250.0,96249.0,0.4211184]
[1739438322940,0.00100019,96250.0,96249.0,0.4031184]
[1739438323297,1.9e-07,96250.0,96249.0,0.52862205]
[1739438323512,1.9e-07,96250.0,96249.0,0.61092205]
[1739438323940,1.9e-07,96250.0,96249.0,1.48442177]
[1739438327003,0.00010679,96250.0,96249.0,1.48442177]
[1739438327943,7.9e-07,96250.0,96249.0,1.48442177]
[1739438330373,7.9e-07,96250.0,96249.0,1.35712177]
[1739438330620,7.9e-07,96250.0,96249.0,1.25461812]
[1739438338465,7.9e-07,96250.0,96249.0,1.25484177]
[1739438347420,7.9e-07,96250.0,96249.0,1.35734542]
[1739438347600,7.9e-07,96250.0,96249.0,1.20734542]
[1739438347805,7.9e-07,96250.0,96249.0,1.35734542]
[1739438351081,7.9e-07,96250.0,96249.0,1.20734542]
[1739438351856,7.9e-07,96250.0,96249.0,1.35734542]
[1739438352815,7.9e-07,96250.0,96249.0,1.25484177]
[1739438358031,7.9e-07,96250.0,96249.0,1.34767239]
[1739438362465,0.0001064,96260.0,96259.0,0.155829]
[1739438362673,0.0001064,96260.0,96259.0,0.66614081]
[1739438362898,0.0001064,96260.0,96259.0,0.66510212]
[1739438363475,0.0011064,96260.0,96259.0,0.67910212]
[1739438364655,0.0011064,96260.0,96259.0,0.68410212]
[1739438365207,0.0011064,96260.0,96259.0,0.70710212]
[1739438366177,0.00101446,96260.0,96259.0,1.25360212]
[1739438369607,0.00101446,96260.0,96259.0,1.10360212]
[1739438370942,0.00101446,96260.0,96259.0,1.25360212]
[1739438374306,0.00101446,96260.0,96259.0,1.25382577]
[1739438389991,0.00101446,96260.0,96259.0,1.33512577]
[1739438396413,4.6e-07,96260.0,96259.0,1.43762942]
[1739438396816,0.0001066,96268.0,96267.0,0.305816]
[1739438397045,0.00487773,96268.0,96267.0,0.34848311]
[1739438397249,0.0001066,96268.0,96267.0,0.37148311]
[1739438398102,0.0011066,96268.0,96267.0,0.37948311]
[1739438398312,0.0011066,96268.0,96267.0,0.38148311]
[1739438399001,0.00116137,96268.0,96267.0,0.38148311]
[1739438401018,0.00116137,96268.0,96267.0,0.40264554]
[1739438401942,0.00116137,96268.0,96267.0,1.27614526]
[1739438404007,0.0001065,96280.0,96279.0,0.305797]
[1739438404398,0.3001065,96280.0,96279.0,0.305797]
[1739438404587,0.30490102,96280.0,96279.0,0.305797]
[1739438405618,0.30490102,96280.0,96279.0,0.31719466]
[1739438405850,0.30490102,96280.0,96279.0,0.31919466]
[1739438407211,0.30490102,96280.0,96279.0,0.308797]
[1739438407414,0.30490102,96280.0,96279.0,0.003]
[1739438407618,0.43090102,96280.0,96279.0,0.003]
[1739438408023,0.58669602,96280.0,96279.0,0.003]
[1739438408384,0.69933075,96280.0,96279.0,0.003]
[1739438409425,0.68919967,96280.0,96279.0,0.003]
[1739438409632,0.68919967,96280.0,96279.0,0.009]
[1739438410599,0.68919967,96280.0,96279.0,0.008]
[1739438410821,0.232703,96275.0,96274.0,0.32699972]
[1739438411155,0.34004525,96275.0,96274.0,0.32699972]
[1739438413773,0.3,96267.0,96266.0,0.32699972]
[1739438413984,0.3,96267.0,96266.0,0.33499972]
[1739438414209,0.30483847,96267.0,96266.0,0.33499972]
[1739438414407,0.30483847,96267.0,96266.0,0.32699972]
[1739438415030,0.30483847,96267.0,96266.0,0.33199972]
[1739438415232,0.30483847,96267.0,96266.0,0.33399972]
[1739438416200,0.30483847,96267.0,96266.0,0.48981772]
[1739438416979,0.3,96267.0,96266.0,0.48981772]
[1739438417300,0.30480092,96267.0,96266.0,0.33399972]
[1739438418168,0.46061692,96267.0,96266.0,0.33399972]
[1739438418434,0.30480092,96267.0,96266.0,0.33399972]
[1739438418924,0.46061692,96267.0,96266.0,0.33399972]
[1739438419897,0.30480092,96267.0,96266.0,0.33399972]
[1739438420882,0.30480092,96267.0,96266.0,0.33422337]
[1739438422958,0.30480092,96267.0,96266.0,0.48504137]
[1739438423157,0.30480092,96267.0,96266.0,0.48804137]
[1739438423877,0.30480092,96267.0,96266.0,0.32922337]
[1739438424082,0.30480092,96267.0,96266.0,0.33022337]
[1739438424318,0.30480092,96267.0,96266.0,0.33122337]
[1739438424671,0.30480092,96267.0,96266.0,0.33022337]
[1739438424878,0.30480092,96267.0,96266.0,0.33122337]
[1739438426740,0.3,96267.0,96266.0,0.33122337]
[1739438427065,0.46061692,96267.0,96266.0,0.33122337]
[1739438427773,0.30480092,96267.0,96266.0,0.33122337]
[1739438429151,0.46061692,96267.0,96266.0,0.33122337]
[1739438431265,0.30480092,96267.0,96266.0,0.33122337]
[1739438432408,0.46061692,96267.0,96266.0,0.33122337]
[1739438433410,0.30480092,96267.0,96266.0,0.33122337]
[1739438434220,0.30480092,96267.0,96266.0,0.48704137]
[1739438434419,0.3,96267.0,96266.0,0.48704137]
[1739438434815,0.30481235,96267.0,96266.0,0.48704137]
[1739438440204,0.30481235,96267.0,96266.0,0.56554137]
[1739438440428,0.30481235,96267.0,96266.0,0.73854137]
[1739438440645,0.3,96267.0,96266.0,0.82844551]
[1739438443392,0.3,96267.0,96266.0,1.37494551]
[1739438444180,0.3,96267.0,96266.0,1.3645518]
[1739438446060,0.0001065,96273.0,96266.0,1.2087338]
[1739438446432,0.0001065,96273.0,96272.0,0.305808]
[1739438446585,0.0001065,96273.0,96272.0,0.328808]
[1739438449449,0.0001065,96273.0,96272.0,0.65580772]
[1739438452052,0.0001065,96273.0,96272.0,0.67618819]
[1739438454116,0.0001065,96273.0,96272.0,0.67918819]
[1739438454328,0.0001065,96273.0,96272.0,0.68218819]
[1739438454733,0.0001065,96273.0,96272.0,0.67918819]
[1739438454911,0.0001065,96273.0,96272.0,0.68618819]
[1739438456676,0.3001065,96273.0,96272.0,0.64280772]
[1739438457485,0.3001065,96273.0,96272.0,0.63580772]
[1739438457898,0.3001065,96273.0,96272.0,0.63880772]
[1739438458335,0.3001065,96273.0,96272.0,0.64180772]
[1739438458540,0.3001065,96273.0,96272.0,0.63880772]
[1739438459947,0.30497521,96273.0,96272.0,0.64180772]
[1739438460761,0.4559125,96273.0,96272.0,0.33599972]
[1739438460970,0.56328486,96273.0,96272.0,0.33599972]
[1739438461800,0.56328486,96273.0,96272.0,0.33299972]
[1739438462006,0.56328486,96273.0,96272.0,0.32699972]
[1739438463215,0.57359881,96273.0,96272.0,0.32799972]
[1739438463420,0.57359881,96273.0,96272.0,0.32999972]
[1739438463967,0.57359881,96273.0,96272.0,0.32699972]
[1739438467224,0.41779281,96273.0,96267.0,0.00022365]
[1739438467428,0.155815,96268.0,96267.0,0.00022365]
[1739438467650,0.25831865,96268.0,96267.0,0.00022365]
[1739438467901,0.26314688,96268.0,96267.0,0.00022365]
[1739438469978,0.26314688,96268.0,96267.0,0.00122365]
[1739438470167,0.26314688,96268.0,96267.0,0.00422365]
[1739438471484,0.10733188,96268.0,96267.0,0.00422365]
[1739438472088,0.26314688,96268.0,96267.0,0.00422365]
[1739438475359,0.26314688,96268.0,96267.0,0.00122365]
[1739438475899,0.26314688,96268.0,96267.0,0.00022365]
[1739438479792,0.30814688,96268.0,96267.0,0.00022365]
[1739438480317,0.30825338,96268.0,96267.0,0.00022365]
[1739438484535,0.39065338,96268.0,96267.0,0.00022365]
[1739438486620,0.39165338,96268.0,96267.0,0.00022365]
[1739438487258,0.39065338,96268.0,96267.0,0.00022365]
[1739438487680,0.39465338,96268.0,96267.0,0.00022365]
[1739438488543,0.39465338,96268.0,96267.0,0.00122365]
[1739438489811,0.39565338,96268.0,96267.0,0.00122365]
[1739438489998,0.39065338,96268.0,96267.0,0.00122365]
[1739438490504,0.39565338,96268.0,96267.0,0.00122365]
[1739438493684,0.31325338,96268.0,96267.0,0.00122365]
[1739438494882,0.26825338,96268.0,96267.0,0.00122365]
[1739438496816,0.11243838,96268.0,96267.0,0.00122365]
[1739438497070,0.26929502,96268.0,96267.0,0.00122365]
[1739438497278,0.26825338,96268.0,96267.0,0.00122365]
[1739438497861,0.11243838,96268.0,96267.0,0.00122365]
[1739438498096,0.41348002,96268.0,96267.0,0.00122365]
[1739438498301,0.41243838,96268.0,96267.0,0.00122365]
[1739438501004,0.56825338,96268.0,96267.0,0.00122365]
[1739438501852,0.41243838,96268.0,96267.0,0.00122365]
[1739438504160,0.56825338,96268.0,96267.0,0.00122365]
[1739438506440,0.64535338,96268.0,96267.0,0.00122365]
[1739438515835,0.66480484,96268.0,96267.0,0.00122365]
[1739438517002,0.64535338,96268.0,96267.0,0.00122365]
[1739438519393,0.64535338,96268.0,96267.0,0.00022365]
[1739438519605,0.64535338,96268.0,96267.0,0.00122365]
[1739438519737,0.64035338,96268.0,96267.0,0.00122365]
[1739438519952,0.64535338,96268.0,96267.0,0.00122365]
[1739438520825,0.56825338,96268.0,96267.0,0.00122365]
[1739438522734,0.56825338,96268.0,96267.0,0.00022365]
[1739438523146,0.56825338,96268.0,96267.0,0.00122365]
[1739438523798,0.56325338,96268.0,96267.0,0.00122365]
[1739438524018,0.56825338,96268.0,96267.0,0.00122365]
[1739438524723,0.57325338,96268.0,96267.0,0.00022365]
[1739438524923,0.57325338,96268.0,96267.0,0.00122365]
[1739438525302,0.57325338,96268.0,96267.0,0.00022365]
[1739438525659,0.57325338,96268.0,96267.0,0.00122365]
[1739438530006,0.56825338,96268.0,96267.0,0.00122365]
[1739438539719,0.56825338,96268.0,96267.0,0.00022365]
[1739438540148,0.56825338,96268.0,96267.0,0.00122365]
[1739438540508,0.55825338,96268.0,96267.0,0.00122365]
[1739438540720,0.56425338,96268.0,96267.0,0.00222365]
[1739438541131,0.55825338,96268.0,96267.0,0.00122365]
[1739438541362,0.56425338,96268.0,96267.0,0.00122365]
[1739438541564,0.57425338,96268.0,96267.0,0.00222365]
[1739438542002,0.57425338,96268.0,96267.0,0.00122365]
[1739438542228,0.56425338,96268.0,96267.0,0.00122365]
[1739438542612,0.57825338,96268.0,96267.0,0.00122365]
[1739438542829,0.57225338,96268.0,96267.0,0.00022365]
[1739438543117,0.56525338,96268.0,96267.0,0.00222365]
[1739438543322,0.57925338,96268.0,96267.0,0.00222365]
[1739438544172,0.57225338,96268.0,96267.0,0.00122365]
[1739438544573,0.57925338,96268.0,96267.0,0.00222365]
[1739438544927,0.56525338,96268.0,96267.0,0.00122365]
[1739438545139,0.57525338,96268.0,96267.0,0.00222365]
[1739438545807,0.56525338,96268.0,96267.0,0.00122365]
[1739438546018,0.56825338,96268.0,96267.0,0.00122365]
[1739438546227,0.57525338,96268.0,96267.0,0.00222365]
[1739438546602,0.41943838,96268.0,96266.0,0.0245473]
[1739438546765,0.15685764,96267.0,96266.0,0.0245473]
[1739438546969,0.26510204,96267.0,96266.0,0.0245473]
[1739438547187,0.2640604,96267.0,96266.0,0.0245473]
[1739438547771,0.2640604,96267.0,96266.0,0.0255473]
[1739438548714,0.2640604,96267.0,96266.0,0.0265473]
[1739438548952,0.2640604,96267.0,96266.0,0.002]
[1739438549348,0.2640604,96267.0,96266.0,0.001]
[1739438549523,0.2750604,96267.0,96266.0,0.001]
[1739438549924,0.2820604,96267.0,96266.0,0.002]
[1739438550873,0.2820604,96267.0,96266.0,0.00222365]
[1739438562807,0.2821669,96267.0,96266.0,0.00222365]
[1739438573441,0.1263509,96267.0,96262.0,0.0763]
[1739438573658,0.155823,96263.0,96262.0,0.0763]
[1739438574015,0.25936829,96263.0,96262.0,0.0763]
[1739438574216,0.2640624,96263.0,96262.0,0.0763]
[1739438574574,0.2640624,96263.0,96262.0,0.0773]
[1739438576494,0.2700624,96263.0,96262.0,0.0773]
[1739438576926,0.2810624,96263.0,96262.0,0.0783]
[1739438577510,0.4252394,96263.0,96262.0,0.234124]
[1739438577735,0.4252394,96263.0,96262.0,0.0783]
[1739438578054,0.5810624,96263.0,96262.0,0.0783]
[1739438578556,0.4252394,96263.0,96262.0,0.0783]
[1739438579472,0.5810624,96263.0,96262.0,0.0783]
[1739438580072,0.5700624,96263.0,96262.0,0.0773]
[1739438580292,0.5640624,96263.0,96262.0,0.0763]
[1739438580563,0.5740624,96263.0,96262.0,0.0773]
[1739438580893,0.5670624,96263.0,96262.0,0.0763]
[1739438581088,0.5730624,96263.0,96262.0,0.0763]
[1739438581321,0.155826,96261.0,96260.0,0.00022365]
[1739438581662,0.26511709,96261.0,96260.0,0.00022365]
[1739438581830,0.26407545,96261.0,96260.0,0.00022365]